Cogmind - Beta 12 @@@ ROGUE MODE // 2023.08.10 @ 06:13:09 Player: AAAAAAAAAAAAAAAA Result: Self-destructed Performance ------------- Evolutions (1) 500 Regions Visited (4) 800 Robots Destroyed (14) 70 Value Destroyed (226) 226 Prototype IDs (1) 20 Alien Tech Used (0) 0 Bonus (0) 0 TOTAL SCORE: 1616 Bonus ------- None Cogmind --------- Core Integrity 280/400 Matter 225/300 Energy 115/250 System Corruption 1% Temperature Danger (420) Movement Walking (120) Location -9/Storage Parts ------- > --- POWER (1) -------- Ion Engine > --- PROPULSION (3) --- Improved Aluminum Leg Improved Aluminum Leg Improved Aluminum Leg > --- UTILITY (3) ------ Small Storage Unit > --- WEAPON (2) ------- Advanced Beam Cannon Advanced Beam Cannon > --- INVENTORY (8) ---- Improved Aluminum Leg EM Pulse Gun Improved EM Shotgun Improved EM Shotgun Improved EM Shotgun Improved EM Shotgun Assault Rifle Mining Laser Peak State ------------ > --- POWER ------------ Ion Engine > --- PROPULSION ------- Improved Aluminum Leg Improved Aluminum Leg Improved Aluminum Leg > --- UTILITY ---------- Small Storage Unit ECM Suite > --- WEAPON ----------- Advanced Beam Cannon Advanced Beam Cannon > --- INVENTORY -------- Aluminum Leg EM Pulse Gun Improved EM Shotgun Improved EM Shotgun Improved EM Shotgun Improved EM Shotgun Assault Rifle Mining Laser [Rating: 16] Favorites ----------- Power Ion Engine Engine Ion Engine Propulsion Aluminum Leg Leg Aluminum Leg Wheel Wheel Utility Small Storage Unit Device ECM Suite Storage Small Storage Unit Weapon Medium Laser Energy Gun Medium Laser Energy Cannon Advanced Beam Cannon Ballistic Gun Assault Rifle Build | -11 -10 -10 -9 -9 ------- Run | Jun Mat Min Mat Sto Slots Evolved 2 | . . . 2 . Power . | . . . . . Propulsion 1 | . . . 1 . Utility 1 | . . . 1 . Weapon . | . . . . . Parts Attached 22 | 5 2 4 4 7 Power 2 | 1 . . . 1 Engine 2 | 1 . . . 1 Core . | . . . . . Reactor . | . . . . . Propulsion 8 | 2 . 2 1 3 Treads . | . . . . . Leg 5 | 2 . . . 3 Wheel 3 | . . 2 1 . Hover . | . . . . . Flight . | . . . . . Utility 2 | . 1 1 . . Device 1 | . . 1 . . Storage 1 | . 1 . . . Processor . | . . . . . Hackware . | . . . . . Protection . | . . . . . Artifact . | . . . . . Weapon 10 | 2 1 1 3 3 Energy Gun 4 | 2 . . 2 . Energy Cannon 3 | . . . 1 2 Ballistic Gun 3 | . 1 1 . 1 Ballistic Cannon . | . . . . . Launcher . | . . . . . Special Weapon . | . . . . . Impact Weapon . | . . . . . Slashing Weapon . | . . . . . Piercing Weapon . | . . . . . Special Melee Weapon . | . . . . . Unidentified Prototypes 1 | . . . . 1 Parts Lost 5 | . . 2 2 1 Power 1 | . . . 1 . Propulsion 1 | . . 1 . . Utility 1 | . . . . 1 Weapon 2 | . . 1 1 . Highest Loss Streak 2 | . . 1 2 1 To Critical Strikes . | . . . . . Average Slot Usage (%) 88 | . 85 96 87 85 Engine 12 | . 14 14 11 11 Leg 16 | . 28 17 . 16 Wheel 13 | . . 8 33 17 Device 7 | . . 13 11 9 Storage 12 | . 14 14 11 11 Energy Gun 15 | . 19 14 19 4 Energy Cannon 1 | . . . . 14 Ballistic Gun 7 | . 8 13 1 3 Naked Turns . | . . . . . Heaviest Build 20 | 8 14 16 17 20 Greatest Support 39 | 20 20 20 36 39 Greatest Overweight (x) 1 | . . 1 . 1 Average Overweight (x) . | . . . . . Largest Inventory Capacity 8 | 5 8 8 8 8 Average Capacity 7 | 5 8 8 8 8 Most Carried 8 | 5 6 6 7 8 Average Carried 5 | 2 4 5 6 7 Final Capacity 8 | 5 8 8 8 8 Final Carried 8 | 5 6 5 7 8 Class Distribution -------------------- 100% | Mutant Dominant Class ---------------- Mutant | -10/Materials Mutant | -10/Mines Mutant | -9/Materials Mutant | -9/Storage Resources | -11 -10 -10 -9 -9 ----------- Run | Jun Mat Min Mat Sto Matter Collected 400 | 250 56 55 39 . Remotely . | . . . . . Salvage Created 316 | . 135 50 69 62 Parts 17 | . 8 2 3 4 Haulers Intercepted . | . . . . . Recyclers Shooed . | . . . . . Parts Field Recycled . | . . . . . Retrieved Matter . | . . . . . Parts Self-Destructed . | . . . . . Prevented . | . . . . . Kills | -11 -10 -10 -9 -9 ------- Run | Jun Mat Min Mat Sto Combat Hostiles Destroyed 18 | . 7 7 3 1 Guns 17 | . 7 7 3 . Cannons 1 | . . . . 1 Classes Destroyed 5 | . 2 1 1 1 Watcher 2 | . . . 1 1 Swarmer 9 | . 6 . 3 . Grunt 2 | . 1 1 . . Brawler 1 | . . . . 1 Assembled 6 | . . 6 . . Best Kill Streak 4 | . 4 4 3 1 Combat Bots Only 4 | . 4 4 3 1 Max Kills in Single Turn 1 | . 1 1 1 1 Gunslinging . | . . . . . Exploded . | . . . . . Melee . | . . . . . Uniques/NPCs Destroyed . | . . . . . Combat | -11 -10 -10 -9 -9 -------- Run | Jun Mat Min Mat Sto Damage Taken 1043 | . 217 249 236 341 Core 177 | . 17 40 42 78 Absorbed by Shields . | . . . . . Core Remaining (%) 88 | 100 . 77 . . Volleys Fired 50 | . 17 16 8 9 Largest 2 | . 2 2 2 2 Hottest 136 | . 90 70 85 136 Shots Fired 97 | . 34 29 16 18 Gun 79 | . 34 29 16 . Cannon 18 | . . . . 18 Launcher . | . . . . . Special . | . . . . . Kinetic 25 | . 12 13 . . Thermal 56 | . 22 16 . 18 Explosive . | . . . . . Electromagnetic 16 | . . . 16 . Robot Hit Streak 6 | . 5 6 2 2 Robot Miss Streak 4 | . 2 3 3 4 Penetration Max . | . . . . . Secondary Targets . | . . . . . Shots Hit Robots 48 | . 18 16 6 8 Core Hits 25 | . 8 10 4 3 Critical Kills . | . . . . . Critical Parts Destroyed . | . . . . . Critical Strikes 6 | . 1 5 . . Burn 6 | . 1 5 . . Melee Attacks . | . . . . . Impact . | . . . . . Slashing . | . . . . . Piercing . | . . . . . Sneak Attacks . | . . . . . Combat Hostiles . | . . . . . Follow-up Attacks . | . . . . . Damage Inflicted 806 | . 230 207 206 163 Guns 558 | . 230 207 121 . Cannons 163 | . . . . 163 Explosions 85 | . . . 85 . Melee . | . . . . . Ramming . | . . . . . Kinetic 166 | . 81 85 . . Thermal 519 | . 149 122 85 163 Explosive . | . . . . . Electromagnetic 121 | . . . 121 . Impact . | . . . . . Slashing . | . . . . . Piercing . | . . . . . Highest Corruption 1 | . . . . 1 Average Corruption 1 | . . . . 1 Corruption Purged . | . . . . . Corruption Blocked . | . . . . . Overload Shots . | . . . . . Overflow Damage . | . . . . . Projectiles . | . . . . . Explosions . | . . . . . Melee . | . . . . . Knockbacks . | . . . . . Impact . | . . . . . Kinetic . | . . . . . Secondary . | . . . . . Self-Inflicted Damage 18 | . . . 18 . Shots 1 | . . . 1 . Rammed . | . . . . . Targets Rammed . | . . . . . Kicked . | . . . . . Crushed . | . . . . . Highest Temperature 488 | . 150 36 75 488 Average Temperature 74 | . 48 17 31 215 Received Heat Transfer 141 | . . 12 . 129 Effects 2 | . . . . 2 Shutdowns 1 | . . . . 1 Damage (minor) 1 | . . . . 1 Siege Activations . | . . . . . Robots Corrupted . | . . . . . Combat Hostiles . | . . . . . Parts Fried 1 | . . . 1 . Impact Corruptions . | . . . . . Robots Melted . | . . . . . Combat Hostiles . | . . . . . Parts Melted 1 | . 1 . . . Heat Transferred 1543 | . 506 740 50 247 Parts Sabotaged . | . . . . . Parts Stolen . | . . . . . Parts Stripped . | . . . . . Power Chain Reactions 2 | . . . 2 . Missiles Intercepted . | . . . . . Alert | -11 -10 -10 -9 -9 ------- Run | Jun Mat Min Mat Sto Peak Influence 245 | . 216 114 245 94 Initial 94 | . . 84 44 94 Average 99 | . 102 100 140 80 Maximum Alert Level 1 | . 1 . 1 . Low Security (%) 86 | 100 80 100 68 100 Level 1 13 | . 19 . 31 . Level 2 . | . . . . . Level 3 . | . . . . . Level 4 . | . . . . . Level 5 . | . . . . . High Security . | . . . . . Max Security . | . . . . . Squads Dispatched 3 | . 1 . . 2 Investigation . | . . . . . Extermination . | . . . . . Reinforcement 1 | . 1 . . . Assault 2 | . . . . 2 Garrison . | . . . . . Intercept . | . . . . . Searches Triggered . | . . . . . Construction Impeded . | . . . . . Haulers Reinforced . | . . . . . Active Scanning Responses . | . . . . . Cargo Convoy Interrupts . | . . . . . Stealth | -11 -10 -10 -9 -9 --------- Run | Jun Mat Min Mat Sto Distress Signals 2 | . . . . 2 Communications Jammed . | . . . . . Distress Signals . | . . . . . Times Spotted 42 | . 10 11 9 12 Peak Tracking Total 8 | . 5 5 4 8 Tactical Retreats 5 | . . 3 1 1 Traps | -11 -10 -10 -9 -9 ------- Run | Jun Mat Min Mat Sto Traps Triggered 2 | . 2 . . . Indirectly . | . . . . . Trap Hack Attempts . | . . . . . Triggered . | . . . . . Disarmed . | . . . . . Reprogrammed . | . . . . . Reused . | . . . . . Traps Extracted . | . . . . . Installed . | . . . . . Triggered . | . . . . . Machines | -11 -10 -10 -9 -9 ---------- Run | Jun Mat Min Mat Sto Machines Disabled . | . . . . . Max in Single Turn . | . . . . . Machines Repaired . | . . . . . Machines Sabotaged . | . . . . . Overloaded Fab Kills . | . . . . . Hacking | -11 -10 -10 -9 -9 --------- Run | Jun Mat Min Mat Sto Machines Accessed 5 | . 4 . 1 . Terminals 4 | . 3 . 1 . Fabricators . | . . . . . Repair Stations . | . . . . . Recycling Units 1 | . 1 . . . Scanalyzers . | . . . . . Garrison Access . | . . . . . Total Hacks 10 | . 8 . 2 . Successful 4 | . 3 . 1 . Failed 6 | . 5 . 1 . Catastrophic 1 | . 1 . . . Database Lockouts . | . . . . . Manual 3 | . 3 . . . Terminals 9 | . 7 . 2 . Fabricators . | . . . . . Repair Stations . | . . . . . Recycling Units 1 | . 1 . . . Scanalyzers . | . . . . . Garrison Access . | . . . . . Terminal Hacks 3 | . 2 . 1 . Branch Access Points 1 | . 1 . . . Zone Layout 2 | . 1 . 1 . Fabricator Hacks . | . . . . . Repair Station Hacks . | . . . . . Recycling Unit Hacks 1 | . 1 . . . Report Inventory 1 | . 1 . . . Scanalyzer . | . . . . . Garrison Access Hacks . | . . . . . Unauthorized Hacks . | . . . . . Terminals . | . . . . . Fabricators . | . . . . . Repair Stations . | . . . . . Recycling Units . | . . . . . Scanalyzers . | . . . . . Garrison Access . | . . . . . Data Cores Recovered . | . . . . . Used . | . . . . . Hacking Detections 4 | . 3 . 1 . Full Trace Events 1 | . 1 . . . Feedback Events . | . . . . . Feedback Blocked . | . . . . . Robot Schematics Acquired . | . . . . . Robots Built . | . . . . . Authchips . | . . . . . Time . | . . . . . Total Robot Build Rating . | . . . . . Part Schematics Acquired . | . . . . . Parts Built . | . . . . . Authchips . | . . . . . Time . | . . . . . Total Part Build Rating . | . . . . . Parts Repaired . | . . . . . Time . | . . . . . Parts Recycled . | . . . . . Recycled Matter . | . . . . . Retrieved Matter . | . . . . . Retrieved Components . | . . . . . Parts Scanalyzed . | . . . . . Part Schematics Acquired . | . . . . . Parts Damaged . | . . . . . Bothacking | -11 -10 -10 -9 -9 ------------ Run | Jun Mat Min Mat Sto Used RIF Installer . | . . . . . Robots Hacked . | . . . . . Non-combat . | . . . . . Combat . | . . . . . Robot Hacks Applied . | . . . . . Relay Couplers Released . | . . . . . Fabnet Peak Effective % . | . . . . . Robots Rewired . | . . . . . Allies Hacked . | . . . . . Hacks Repelled . | . . . . . Allies | -11 -10 -10 -9 -9 -------- Run | Jun Mat Min Mat Sto Total Allies 2 | . . . . 2 Largest Group 2 | . . . . 2 Highest-Rated Group 62 | . . . . 62 Highest-Rated Ally 31 | . . . . 31 Total Orders . | . . . . . Ally Attacks 13 | . . . . 13 Total Damage 205 | . . . . 205 Kills . | . . . . . Allies Corrupted . | . . . . . Allies Melted . | . . . . . Intel | -11 -10 -10 -9 -9 ------- Run | Jun Mat Min Mat Sto Robot Analysis Total . | . . . . . Derelict Logs Recovered 2 | . . 2 . . Drone Launches . | . . . . . Drone Recoveries . | . . . . . Exploration | -11 -10 -10 -9 -9 ------------- Run | Jun Mat Min Mat Sto Turns Passed 934 | 87 278 237 226 106 Spaces Moved 582 | 72 161 141 157 51 Core 16 | 16 . . . . Treads . | . . . . . Legs 324 | 56 161 94 . 13 Wheels 242 | . . 47 157 38 Hover . | . . . . . Flight . | . . . . . Fastest Speed 50 | 50 120 80 86 86 Average Speed 104 | 104 120 108 86 96 Slowest Speed 190 | 120 120 190 86 190 Overloaded Moves . | . . . . . Propulsion Burnouts . | . . . . . Robots Hopped . | . . . . . Cave-ins Triggered . | . . . . . Exploration Rate (%) 23 | 4 38 46 17 10 Regions Visited 4 Branch Regions 2 Pre-discovered Areas . | . . . . . Known Exits Taken 1 | . 1 . . . Unknown Exits Taken 3 | 1 . 1 1 . Scrap Searched 2 | . . 2 . . Spaces Dug . | . . . . . Terrain Destroyed 4 | . . . 4 . Melee . | . . . . . Projectile . | . . . . . AOE 4 | . . . 4 . Terrain Rammed . | . . . . . Walls Destroyed . | . . . . . Machines Disabled . | . . . . . Actions | -11 -10 -10 -9 -9 --------- Run | Jun Mat Min Mat Sto Total 808 | 81 212 193 231 91 Wait 134 | . 31 33 60 10 Move 578 | 71 160 140 156 51 Hop . | . . . . . Pick Up 13 | 5 1 . . 7 Fast Attach 14 | 5 1 2 3 3 Attach 5 | . 1 1 1 2 Detach 4 | . 1 . 3 . Swap 3 | . . 1 . 2 Drop 7 | . . . . 7 Fire 50 | . 17 16 8 9 Melee . | . . . . . Ram . | . . . . . Kick . | . . . . . Crush . | . . . . . Escape Stasis . | . . . . . Rewire . | . . . . . Trap . | . . . . . Miscellaneous . | . . . . . Route ------- -11/Junkyard -10/Materials -10/Mines -9/Materials (discovered 3 exits: Mat x2 / *Sto) -9/Storage History --------- Turn | Location | Event 5 | -11/Junkyard | Discovered new exit (range 14) 88 | -11/Junkyard | Entered Materials 307 | -10/Materials | Build established: Mutant 333 | -10/Materials | Discovered new exit (range 9) 333 | -10/Materials | Identified exit to Mines 366 | -10/Materials | Entered Mines 466 | -10/Mines | Assembled infested the area 471 | -10/Mines | Assisted by a Guerilla fighting off Assembled 471 | -10/Mines | Learned 4 Materials zone layouts 479 | -10/Mines | Learned Materials terminal intel 556 | -10/Mines | Discovered new exit (range 8) 603 | -10/Mines | Entered Materials 603 | -9/Materials | Evolved 2 slots: Propulsion x1, Utility x1 604 | -9/Materials | Identified exit to Materials 605 | -9/Materials | Loaded intel: 12 terminal locations 606 | -9/Materials | Discovered new exit (range 14) 829 | -9/Materials | Entered Storage 837 | -9/Storage | Met a pair of Derelict thieves 935 | -9/Storage | Self-destructed Last Messages --------------- 00859_ Current location identified: Storage 00864_ Identified Adv. Beam Cannon. 00878_ Dropped Wheel. 00878_ Acquired Imp. Aluminum Leg. 00882_ Dropped Wheel. 00882_ Dropped Com. Wheel. 00883_ Acquired Imp. Aluminum Leg. 00887_ Dropped Aluminum Leg. 00888_ Acquired Imp. Aluminum Leg. 00894_ W-16 Scout sends out distress signal. 00897_ W-16 Scout destroyed. 00899_ K-01 Serf collects debris. 00910_ K-01 Serf cleans the Heavy Doors. 00914_ ECM Suite destroyed. 00914_ System corrupted by crushing effect (+1). 00920_ B-36 Bruiser destroyed. 00927_ Overheating: Imp. Aluminum Leg damaged (-61). 00927_ K-01 Serf collects debris. 00933_ Power failure, Ion Engine shutdown. 00934_ K-01 Serf collects debris. Map ----- +----------------------------------------------------+ | | | | | | | ???????????????????????????????? | | ???????????????????????????????? | | ???????????????????????????????? | | ???????????????????????????????? | | ??????????????#####????????????? | | ??????????????# #????????????? | | ??????????????# #????????????? | | ??????????????# #########????? | | ??????????????# # # ][#????? | | ??????????????# # " [#????? | | ??????????????# + #????? | | ?+#######+##### # " #????? | | ##T# #????? | | #### ] ]#????? | | #??######????? | | ??#######+##### #????????????? | | ??????????????# #????????????? | | ??????????????# #????????????? | | ??????????????# #????????????? | | ??????????????# #????????????? | | ??????????????# #########????? | | ??????????????# #=k"ggb=#????? | | ??????????????# +%k%=lg@#????? | | ??????????????# #= "mi= #????? | | ??????????????# ##T######????? | | ??????????????# ####?????????? | | ??????????????# #????????????? | | ??????????????# #????????????? | | ??????????????# #????????????? | | ??????????????# #????????????? | | ??????????????# #????????????? | | ??????????????# #????????????? | | ??????????????# #????????????? | | ??????????????# #????????????? | | ??????????????# ?????????????? | | ??????????????# ?????????????? | | ??????????????? ?????????????? | | ???????????????????????????????? | | ???????????????????????????????? | | ???????????????????????????????? | | ???????????????????????????????? | | ???????????????????????????????? | | ???????????????????????????????? | | ???????????????????????????????? | | ???????????????????????????????? | | ???????????????????????????????? | | ???????????????????????????????? | +----------------------------------------------------+ Best States ------------- Heat Dissipation 28 Energy Generation 10 Energy Capacity 250 Matter Stores 300 Matter Capacity 300 Sight Range 16 Terrain Scan Density 10 ECM Strength 1 Evasion (%) 55 Item Schematics ----------------- None Robot Schematics ------------------ None Fabricated ------------ Nothing Alien Tech Used ----------------- None Achievements -------------- None Challenges ------------ None Game ------ Seed HugeAbsorptionKinecellerator Manual? 0 Play Time 00:18:50 Cumulative 45.5 hours Start 2023.08.10 @ 05:54:53 End 2023.08.10 @ 06:13:09 Sessions 1 Manual Loads 0 Difficulty Rogue Special Mode None Game No. 32 Rogue 27 Adventurer 5 Explorer 0 Win Type - Total 1 Types 1/0/0/0/0/0/0/0/0 Lore% 11 Gallery% 33 Achievement% 28 Wizard Run 0 Options --------- ASCII 0 Keyboard 1 Movement Numpad Keybinds 0 Fullscreen 2 Font 18/Terminus Map View 76x50 Tactical HUD 1 Map Filters NONE Filters NONE Steam 1 RUN: aab3a6b3-88d4-4378-8a95-3f01a53ed7dc